bitfinex-derivatives/quotes_ETHF0:USTF0_20250704
["timestamp","ask_amount","ask_price","bid_price","bid_amount"]
[1751669060642,37.5172,2517.2,2517.1,0.79435]
[1751669061147,38.31153,2517.2,2517.1,0.79435]
[1751669062548,12.70181,2517.3,2517.2,0.79433]
[1751669062743,48.0635,2517.3,2517.2,0.79433]
[1751669062943,50.2501,2517.3,2517.2,0.79433]
[1751669063450,49.4558,2517.3,2517.2,0.79433]
[1751669063743,50.2501,2517.3,2517.2,0.79433]
[1751669064154,49.4558,2517.3,2517.2,0.79433]
[1751669064653,50.2501,2517.3,2517.2,0.79433]
[1751669065045,49.4558,2517.3,2517.2,0.79433]
[1751669065349,50.2501,2517.3,2517.2,0.79433]
[1751669070456,0.7075,2517.3,2517.2,0.79433]
[1751669070653,48.8468,2517.3,2517.2,0.79433]
[1751669071253,48.0525,2517.3,2517.2,0.79433]
[1751669071957,48.0475,2517.3,2517.2,0.79433]
[1751669072859,0.673,2517.4,2517.3,0.7943]
[1751669073055,47.34,2517.4,2517.3,0.7943]
[1751669073555,48.13427,2517.4,2517.2,0.79431]
[1751669073754,48.6696,2517.4,2517.2,0.79431]
[1751669073954,49.46388,2517.4,2517.3,0.7943]
[1751669074554,48.6696,2517.4,2517.3,0.7943]
[1751669075057,49.46387,2517.4,2517.3,0.7943]
[1751669075360,50.57066809,2517.4,2517.3,0.7943]
[1751669075858,49.77639809,2517.4,2517.3,0.7943]
[1751669076058,50.57066809,2517.4,2517.3,0.7943]
[1751669077060,49.77639809,2517.4,2517.3,0.7943]
[1751669079865,3.16734754,2518.0,2517.5,1.98558]
[1751669080061,1.10779572,2517.9,2517.8,0.79413]
[1751669080368,37.25279572,2517.9,2517.8,0.79413]
[1751669080661,0.6541,2518.2,2518.1,0.79405]
[1751669080862,37.90415896,2518.2,2518.1,0.79405]
[1751669081058,11.2,2518.7,2518.6,0.79389]
[1751669081262,1.10649191,2518.7,2518.6,0.79389]
[1751669081459,37.24849191,2518.7,2518.6,0.79389]
[1751669081661,36.142,2518.7,2518.6,0.79389]
[1751669081968,2.6455,2518.9,2518.8,0.79383]
[1751669082161,51.12087532,2518.9,2518.8,0.79383]
[1751669082465,50.0155,2518.9,2518.8,0.79383]
[1751669083066,13.8445,2518.9,2518.8,0.79383]
[1751669083266,50.0125,2518.9,2518.8,0.79383]
[1751669083465,38.8095,2518.9,2518.8,0.79383]
[1751669085668,38.8095,2518.9,2518.7,0.79384]
[1751669085870,38.8095,2518.9,2518.8,0.79383]
[1751669086465,38.7945,2518.9,2518.8,0.79383]
[1751669086771,38.7945,2518.9,2518.4,0.6862]
[1751669086965,38.7945,2518.9,2518.7,0.79384]
[1751669087165,39.5883,2518.9,2518.7,0.79384]
[1751669087469,39.5883,2518.9,2518.6,0.79387]
[1751669087966,39.5883,2518.9,2518.7,0.79386]
[1751669088271,38.7945,2518.9,2518.7,0.79386]
[1751669088569,2.6455,2518.9,2518.8,0.79383]
[1751669088768,38.7835,2518.9,2518.7,0.79384]
[1751669089073,39.5773,2518.9,2518.7,0.79384]
[1751669089375,3.4393,2518.9,2518.7,0.79384]
[1751669089573,36.136,2518.8,2518.7,0.79384]
[1751669093174,37.5527,2518.8,2518.7,0.79384]
[1751669094169,0.79386,2518.7,2518.5,0.7939]
[1751669094474,36.122,2518.6,2518.5,0.7939]
[1751669095168,36.91589,2518.6,2518.4,1.48014]
[1751669095369,36.91589,2518.6,2518.5,0.79392]
[1751669095976,36.122,2518.6,2518.5,0.79392]
[1751669097470,36.122,2518.6,2518.4,1.48015]
[1751669097772,36.9159,2518.6,2518.4,1.48015]
[1751669097968,0.79392,2518.5,2518.4,0.6862]
[1751669098168,0.79401,2518.3,2517.6,1.98551]
[1751669098374,36.12,2518.3,2518.2,0.79402]
[1751669100278,36.12,2518.3,2518.0,1.46166]
[1751669100575,2.85753,2518.2,2518.1,0.79405]
[1751669100871,0.79405,2518.1,2517.9,0.7941]
[1751669101070,2.19115,2518.1,2518.0,0.79408]
[1751669101471,1.3971,2518.1,2518.0,0.79408]
[1751669103177,0.6664,2518.2,2518.1,0.79405]
[1751669103780,1.9864,2518.2,2518.1,0.79405]
[1751669103975,0.6664,2518.2,2518.1,0.79405]
[1751669104280,36.7884,2518.2,2518.1,0.79405]
[1751669104675,0.6919,2518.4,2518.3,0.79399]
[1751669104881,11.99187,2518.7,2518.5,0.79392]
[1751669105081,36.123,2518.6,2518.5,0.79392]
[1751669106281,36.8043,2518.6,2518.5,0.79392]
[1751669107178,0.79392,2518.5,2518.3,0.79396]
[1751669107379,0.6666,2518.4,2518.3,0.79396]
[1751669107780,2.0353,2518.4,2518.3,0.79396]
[1751669107986,36.8073,2518.6,2518.5,0.79392]
[1751669108280,36.8153,2518.6,2518.5,0.79392]
[1751669108481,38.184,2518.6,2518.5,0.79392]
[1751669108981,38.9779,2518.6,2518.4,0.79393]
[1751669109483,38.9779,2518.6,2518.2,0.7007]
[1751669109484,2.05,2518.6,2518.5,0.79392]
[1751669109676,38.177,2518.6,2518.5,0.79392]
[1751669117685,38.177,2518.6,2517.9,1.4218]
[1751669117990,1.3056,2518.5,2518.2,0.79401]
[1751669118188,36.91498,2518.4,2518.2,0.79401]
[1751669118391,1.9875,2518.3,2518.2,0.79401]
[1751669120490,0.6819,2518.3,2518.2,0.79401]
[1751669122089,2.0787,2518.3,2518.2,0.79401]
[1751669124288,0.6819,2518.3,2518.2,0.79401]
[1751669125790,2.0898,2518.3,2518.2,0.79401]
[1751669126185,2.88379,2518.3,2518.2,0.79401]
[1751669126388,2.88379,2518.3,2518.1,0.79403]
[1751669126582,2.90432,2518.2,2518.1,0.79403]
[1751669127187,2.1103,2518.2,2517.8,0.685]
[1751669127389,48.7209,2518.1,2517.5,1.9856]
[1751669127689,2.202,2518.0,2517.9,0.79411]
[1751669127887,2.51019051,2518.0,2517.9,0.79411]
[1751669128083,37.22329051,2518.0,2517.9,0.79411]
[1751669128292,0.7024,2518.2,2518.1,0.79405]
[1751669128492,37.92522406,2518.2,2518.1,0.79405]
[1751669128692,36.8234,2518.2,2518.1,0.79405]
[1751669131199,36.122,2518.2,2517.9,1.98528]
[1751669131395,36.122,2518.2,2518.1,0.79405]
[1751669131993,1.3058,2518.6,2518.5,0.79392]
[1751669132190,1.3405,2518.7,2518.5,0.7939]
[1751669132399,37.22360935,2518.6,2518.5,0.79392]
[1751669133693,36.122,2518.6,2518.5,0.79392]
[1751669133893,36.91589,2518.6,2518.5,0.79392]
[1751669134094,36.91589,2518.6,2518.4,0.79394]
[1751669134298,2.15209,2518.6,2518.4,0.79394]
[1751669134599,36.12,2518.5,2518.4,0.79394]
[1751669135995,36.12,2518.5,2518.1,0.6618]
[1751669136298,37.4782,2518.5,2518.1,0.6618]
[1751669136495,38.27212,2518.5,2518.3,0.79396]
[1751669137096,38.27212,2518.5,2518.4,0.79395]
[1751669137295,37.4782,2518.5,2518.4,0.79395]
[1751669137496,36.12,2518.5,2518.4,0.79395]
[1751669137997,36.91392,2518.5,2518.3,0.79396]
[1751669138198,0.79392,2518.5,2518.3,0.79396]
[1751669138501,36.119,2518.4,2518.3,0.79396]
[1751669139701,14.71147,2518.7,2518.5,0.7939]
[1751669139897,36.9119,2518.6,2518.4,0.79393]
[1751669140092,13.32538,2518.7,2518.5,0.79392]
[1751669140296,2.13438,2518.7,2518.6,0.649]
[1751669140497,39.35339746,2518.7,2518.6,0.649]
[1751669140998,1.89489746,2518.7,2518.6,0.649]
[1751669141301,36.118,2518.7,2518.6,1.44289]
[1751669142499,12.4842,2518.9,2518.8,0.79383]
[1751669142705,48.6012,2518.9,2518.8,0.79383]
[1751669142905,49.395,2518.9,2518.7,0.79384]
[1751669143106,48.6012,2518.9,2518.7,0.79384]
[1751669143506,49.39501,2518.9,2518.7,0.79384]
[1751669144407,49.39501,2518.9,2518.8,0.79383]
[1751669144801,48.6012,2518.9,2518.8,0.79383]
[1751669145202,12.4842,2518.9,2518.8,0.79383]
[1751669145403,48.6002,2518.9,2518.8,0.79383]
[1751669145604,49.394,2518.9,2518.8,0.79383]
[1751669145805,49.394,2518.9,2518.7,0.79384]
[1751669146005,49.394,2518.9,2518.6,0.649]
[1751669146304,48.6002,2518.9,2518.8,0.79383]
[1751669147402,49.394,2518.9,2518.7,0.79384]
[1751669147607,0.79383,2518.8,2518.6,1.44288]
[1751669147806,36.115,2518.7,2518.6,0.79388]
[1751669148603,0.6857,2519.0,2518.9,0.7938]
[1751669148807,36.7997,2519.0,2518.9,0.7938]
[1751669149618,0.6857,2519.0,2518.9,0.7938]
[1751669149911,36.7997,2519.0,2518.9,0.7938]
[1751669150617,0.6857,2519.0,2518.9,0.7938]
[1751669151013,36.7997,2519.0,2518.9,0.7938]
[1751669153510,36.7977,2519.0,2518.9,0.7938]
[1751669154116,38.1926,2519.0,2518.9,0.7938]
[1751669154415,38.98636,2519.0,2518.8,0.79381]
[1751669154708,1.3949,2518.9,2518.8,0.79381]
[1751669157718,36.7977,2519.0,2518.9,0.7938]
[1751669158016,36.7957,2519.0,2518.9,0.7938]
[1751669158312,0.6857,2519.0,2518.9,0.7938]
[1751669158506,11.189,2519.5,2519.4,0.79363]
[1751669158711,1.10027756,2519.5,2519.4,0.79362]
[1751669158913,0.17639297,2520.1,2519.3,1.98412]
[1751669159114,1.3606,2520.0,2519.9,0.79348]
[1751669159318,38.803,2520.0,2519.9,0.79348]
[1751669159518,38.803,2520.0,2519.8,0.79349]
[1751669159816,1.3324,2519.9,2519.8,0.79349]
[1751669160011,1.3324,2519.9,2519.6,0.79357]
[1751669160413,2.12589,2519.9,2519.5,0.7936]
[1751669160813,1.3324,2519.8,2519.5,0.7936]
[1751669161013,36.106,2519.7,2519.2,1.67404951]
[1751669161214,36.106,2519.7,2519.5,0.79359]
[1751669161415,36.89955,2519.7,2519.5,0.79359]
[1751669162120,36.89955,2519.7,2519.4,0.79363]
[1751669162516,1.46259,2519.6,2519.4,0.79364]
[1751669162715,2.83539,2519.6,2519.2,0.6972]
[1751669163116,1.3728,2519.5,2519.3,0.79367]
[1751669163323,1.3728,2519.5,2519.4,0.79364]
[1751669163916,1.3728,2519.5,2519.3,0.79365]
[1751669164115,36.102,2519.4,2519.0,0.79374]
[1751669164322,0.79371,2519.2,2518.9,0.7145]
[1751669164624,2.09544,2519.1,2518.9,1.50828]
[1751669164824,2.75564,2519.1,2518.9,1.50828]
[1751669165322,1.9619,2519.1,2519.0,0.79376]
[1751669170422,1.47739,2519.3,2519.1,0.79373]
[1751669170726,2.13239,2519.3,2519.0,0.79374]
[1751669170922,2.1811,2519.2,2519.0,0.79374]
[1751669171122,2.1811,2519.2,2518.9,0.7145]
[1751669171325,1.3874,2519.2,2519.1,0.79373]
[1751669171826,2.1811,2519.2,2519.0,0.79374]
[1751669172429,2.1811,2519.2,2518.9,0.7145]
[1751669172430,2.8449,2519.2,2519.1,0.79373]
[1751669172721,2.8449,2519.2,2518.9,0.7145]
[1751669172922,2.0512,2519.2,2518.4,2.63429]
[1751669173122,0.79378,2519.0,2518.8,0.79382]
[1751669173324,1.3874,2518.9,2518.8,0.79382]
[1751669173523,2.1012,2518.9,2518.8,0.79382]
[1751669174229,2.1012,2518.9,2518.6,0.7022]
[1751669174429,0.79386,2518.7,2518.5,0.7939]
[1751669174729,2.09814,2518.8,2518.6,0.79388]
[1751669175028,0.686,2518.7,2518.6,0.79388]
[1751669175228,1.9903,2518.7,2518.6,0.79388]
[1751669175928,1.9903,2518.7,2518.3,0.6517]
[1751669176125,0.79392,2518.5,2517.8,5.8497993]
[1751669176324,0.6547,2518.4,2518.3,0.79399]
[1751669176629,2.0201,2518.4,2518.3,0.79399]
[1751669177523,2.0201,2518.4,2518.0,0.6517]
[1751669177827,0.79401,2518.3,2518.0,0.79408]
[1751669178028,2.0112,2518.2,2517.9,0.7941]
[1751669178228,2.0112,2518.2,2517.7,0.6817]
[1751669178229,2.0112,2518.2,2517.7,1.47586]
[1751669178428,0.79411,2518.0,2517.7,1.47586]
[1751669178629,1.3654,2517.9,2517.8,0.79414]
[1751669178925,0.79414,2517.8,2517.6,0.79419]
[1751669179119,0.7009,2517.8,2517.6,0.79418]
[1751669179627,2.1227,2517.8,2517.7,0.79417]
[1751669181434,2.1227,2517.8,2517.6,0.79419]
[1751669181931,2.1227,2517.8,2517.3,0.6817]
[1751669182234,2.1227,2517.8,2517.7,0.79417]
[1751669183329,0.7009,2517.8,2517.7,0.79417]
[1751669183728,1.49507,2517.8,2517.5,0.79422]
[1751669183931,2.11968,2517.7,2517.5,0.79422]
[1751669184132,0.6684,2517.6,2517.5,0.79424]
[1751669184334,2.78811,2517.6,2517.4,0.79425]
[1751669184529,1.9939,2517.6,2517.4,0.79425]
[1751669185029,1.9939,2517.6,2517.5,0.79424]
[1751669188132,1.9939,2517.6,2516.9,0.6642]
[1751669188327,38.24325,2517.5,2517.3,0.79429]
[1751669188527,13.31728,2517.4,2517.2,0.79431]
[1751669188835,1.344,2517.3,2517.2,0.79431]
[1751669189031,2.0406,2517.3,2517.2,0.79431]
[1751669192328,2.8349,2517.3,2517.2,0.79431]
[1751669192533,2.83491,2517.3,2517.2,0.79433]
[1751669193035,0.6684,2517.6,2516.9,3.97216]
[1751669193339,36.123,2517.5,2517.4,0.79427]
[1751669193733,37.4912,2517.5,2517.4,0.79427]
[1751669194536,1.3682,2517.5,2517.4,0.79427]
[1751669194736,37.4912,2517.5,2517.4,0.79427]
[1751669195442,38.28544,2517.5,2517.3,0.79427]
[1751669195638,2.0083,2517.4,2517.3,0.79427]
[1751669196338,2.80257,2517.4,2517.3,0.79427]
[1751669197240,2.0083,2517.4,2517.3,0.79427]
[1751669197938,2.80257,2517.4,2517.3,0.79427]
[1751669198140,2.80257,2517.4,2517.0,0.704]
[1751669198141,0.79432,2517.3,2517.2,0.79432]
[1751669198341,2.17352,2517.3,2517.2,0.79432]
[1751669198858,1.3792,2517.3,2517.2,0.79432]
[1751669200946,6.3792,2517.3,2516.5,0.6913]
[1751669201139,47.318,2517.2,2517.1,0.79436]
[1751669201442,49.50993,2517.2,2517.1,0.79436]
[1751669201642,48.7156,2517.2,2517.1,0.79436]
[1751669201842,49.50993,2517.2,2517.1,0.79436]
[1751669202045,0.79437,2517.1,2517.0,0.79437]
[1751669202643,0.79441,2517.0,2516.9,0.79441]
[1751669203246,0.79443,2516.9,2516.8,0.79444]
[1751669203448,36.92143,2516.9,2516.8,0.79444]
[1751669203642,38.24983,2516.9,2516.8,0.79444]
[1751669204344,37.4554,2516.9,2516.8,0.79444]
[1751669205139,38.24983,2516.9,2516.8,0.79444]
[1751669205547,38.24983,2516.9,2516.7,0.79448]
[1751669206141,38.24983,2516.9,2516.5,0.6913]
[1751669206142,0.79446,2516.8,2516.6,0.79451]
[1751669206538,2.12286,2516.8,2516.6,0.79451]
[1751669206739,2.12288,2516.8,2516.6,0.79451]
[1751669207139,0.79449,2516.7,2516.5,1.48584]
[1751669207350,36.92352,2516.6,2516.5,0.6913]
[1751669207544,37.61702,2516.6,2516.5,0.6913]
[1751669208044,36.8225,2516.6,2516.5,0.6913]
[1751669208444,36.8225,2516.6,2516.5,1.48585]
[1751669209751,0.6816,2517.1,2516.5,0.6913]
[1751669209944,49.12248116,2517.0,2516.8,0.79445]
[1751669210146,48.0195,2517.0,2516.8,0.79445]
[1751669210449,50.1595,2517.0,2516.8,0.79445]
[1751669210648,1.3456,2516.9,2516.8,0.79445]
[1751669214150,2.44980842,2516.9,2516.8,0.79445]
[1751669214545,49.77880842,2516.9,2516.8,0.79445]
[1751669215750,48.6746,2516.9,2516.8,0.79445]
[1751669215943,49.77747762,2516.9,2516.8,0.79445]
[1751669218050,49.77747762,2516.9,2516.2,1.2899]
[1751669218051,0.79446,2516.8,2516.7,0.79449]
[1751669218351,2.16886,2516.8,2516.7,0.79449]
[1751669218848,3.27223071,2516.8,2516.7,0.79449]
[1751669219048,2.47777071,2516.8,2516.7,0.79449]
[1751669219251,2.16886,2516.8,2516.7,0.79449]
[1751669220145,3.27236635,2516.8,2516.7,0.79449]
[1751669221052,2.47790635,2516.8,2516.7,0.79449]
[1751669221248,0.79443,2516.9,2516.8,0.79446]
[1751669221551,49.22840116,2516.9,2516.8,0.79446]
[1751669222450,48.43397116,2516.9,2516.4,1.3983]
[1751669222650,0.79449,2516.7,2516.6,0.7945]
[1751669222851,48.7027,2516.9,2516.5,0.79453]
[1751669222852,0.79453,2516.6,2516.5,0.79453]
[1751669223055,36.92853,2516.6,2516.5,0.79453]
[1751669224253,0.79455,2516.5,2516.4,0.79456]
[1751669224453,36.134,2516.6,2516.5,0.79455]
[1751669224454,36.92852,2516.6,2516.5,0.79455]
[1751669225655,36.134,2516.6,2516.5,0.79455]
[1751669225954,36.92852,2516.6,2516.5,0.79455]
[1751669226257,36.134,2516.6,2516.5,0.79455]
[1751669226658,36.92852,2516.6,2516.5,0.79455]
[1751669227359,36.92852,2516.6,2516.4,0.79457]
[1751669227958,0.79455,2516.5,2516.4,0.79457]
[1751669228458,36.92854,2516.6,2516.4,0.79457]
[1751669229360,36.134,2516.6,2516.5,0.79455]
[1751669229959,36.8344,2516.6,2516.5,0.79455]
[1751669231160,37.62892,2516.6,2516.5,0.79455]
[1751669231457,36.8344,2516.6,2516.5,0.79455]
[1751669232754,39.68432,2516.6,2516.5,0.79455]
[1751669232960,39.68432,2516.6,2516.4,0.79456]
[1751669233259,0.79455,2516.5,2516.4,0.79458]
[1751669233461,2.15955,2516.5,2516.4,0.79458]
[1751669234160,1.365,2516.5,2516.4,0.79458]
[1751669234853,1.365,2516.5,2515.9,3.36471]
[1751669235055,1.365,2516.5,2516.3,0.7946]
[1751669235260,1.365,2516.5,2516.4,0.79458]
[1751669235456,3.26693655,2516.5,2516.4,0.79458]
[1751669235661,2.47236655,2516.5,2516.4,0.79458]
[1751669236060,3.26691655,2516.5,2516.4,0.79458]
[1751669236261,0.79461,2516.4,2516.3,0.7946]
[1751669236560,2.21711,2516.4,2516.3,0.7946]
[1751669239067,0.79463,2516.3,2516.2,0.79463]
[1751669239265,36.92763,2516.3,2516.2,0.79463]
[1751669239567,0.7947,2516.1,2516.0,0.79471]
[1751669240071,0.6617,2516.2,2516.1,0.79468]
[1751669240263,47.328,2516.2,2516.1,0.79468]
[1751669240864,48.12265,2516.2,2516.1,0.79468]
[1751669241368,48.12265,2516.2,2516.0,0.7947]
[1751669242463,0.79468,2516.1,2516.0,0.7947]
[1751669242663,36.92868,2516.1,2516.0,0.7947]
[1751669243270,36.92868,2516.1,2515.9,2.20542]
[1751669243976,0.79471,2516.0,2515.9,0.7135]
[1751669244170,36.134,2516.1,2515.7,0.79478]
[1751669244171,0.79476,2515.9,2515.7,0.79478]
[1751669244376,36.135,2515.8,2515.7,0.79478]
[1751669247181,36.135,2515.8,2515.6,2.13812]
[1751669247476,36.135,2515.8,2515.7,0.79481]
[1751669249373,0.6563,2515.9,2515.8,0.79477]
[1751669249571,36.7913,2515.9,2515.8,0.79477]
[1751669251178,37.58604,2515.9,2515.8,0.79477]
[1751669251479,38.1996,2515.9,2515.8,0.79477]
[1751669253773,11.9107,2516.0,2515.9,0.79474]
[1751669253978,47.333,2516.0,2515.9,0.79474]
[1751669254581,2.14467,2516.5,2515.7,4.05102]
[1751669254878,11.197,2516.4,2516.3,0.7946]
[1751669255084,48.6831,2516.4,2516.3,0.7946]
[1751669255674,49.47768,2516.4,2516.0,0.6765]
[1751669256078,12.5471,2516.4,2516.3,0.79462]
[1751669256278,49.47668,2516.4,2516.3,0.79462]
[1751669256680,48.6821,2516.4,2516.3,0.79462]
[1751669259985,49.47668,2516.4,2516.3,0.79462]
[1751669260779,48.6821,2516.4,2516.3,0.79462]
[1751669260982,49.47668,2516.4,2516.3,0.79462]
[1751669261182,50.58217951,2516.4,2516.3,0.79462]
[1751669261385,2.45559951,2516.4,2516.3,0.79462]
[1751669261586,48.6801,2516.4,2516.3,0.79462]
[1751669261786,1.412,2516.6,2516.5,0.79455]
[1751669261984,37.545,2516.6,2516.5,0.79455]
[1751669263087,1.412,2516.6,2516.5,0.79455]
[1751669263287,37.545,2516.6,2516.5,0.79455]
[1751669264678,1.412,2516.6,2516.5,0.79455]
[1751669264881,37.545,2516.6,2516.5,0.79455]
[1751669266386,38.33952,2516.6,2516.4,0.79456]
[1751669266589,39.71522,2516.6,2516.4,0.79456]
[1751669266992,2.7877,2516.6,2516.5,0.79455]
[1751669267293,38.9177,2516.6,2516.5,0.79455]
[1751669267988,2.7877,2516.6,2516.5,0.79455]
[1751669268184,38.9177,2516.6,2516.5,0.79455]
[1751669268793,37.542,2516.6,2516.5,0.79455]
[1751669270192,11.196,2516.7,2516.6,0.79452]
[1751669270391,47.324,2516.7,2516.6,0.79452]
[1751669270694,57.224,2517.0,2516.9,0.79443]
[1751669270993,93.352,2517.0,2516.9,0.79443]
[1751669272387,57.224,2517.0,2516.9,0.79443]
[1751669272594,93.351,2517.0,2516.9,0.79443]
[1751669273785,11.193,2517.5,2517.0,1.986]
[1751669273990,11.193,2517.5,2517.4,0.79427]
[1751669274293,47.319,2517.5,2517.4,0.79427]
[1751669274695,11.193,2517.5,2517.4,0.79427]
[1751669274888,47.317,2517.5,2517.4,0.79427]
[1751669275390,11.193,2517.5,2517.4,0.79427]
[1751669275691,47.317,2517.5,2517.4,0.79427]
[1751669276596,11.193,2517.5,2517.4,0.79427]
[1751669276799,47.317,2517.5,2517.4,0.79427]
[1751669277797,11.193,2517.5,2517.4,0.79427]
[1751669277997,47.312,2517.5,2517.4,0.79427]
[1751669288299,11.193,2517.5,2517.4,0.79427]
[1751669288501,47.303,2517.5,2517.4,0.79427]
[1751669291003,48.6369,2517.5,2517.4,0.79427]
[1751669291298,48.6369,2517.5,2516.9,1.98606]
[1751669291598,2.048,2517.4,2517.3,0.79429]
[1751669291803,2.84228,2517.4,2517.2,0.79432]
[1751669291999,38.0897,2517.3,2517.2,0.79432]
[1751669292705,0.79434,2517.2,2517.0,0.79438]
[1751669292904,0.79434,2517.2,2516.9,0.7007]
[1751669292905,1.3522,2517.2,2517.1,0.79436]
[1751669296408,36.7538,2517.3,2517.2,0.79433]
[1751669299711,38.1147,2517.3,2517.2,0.79433]
[1751669312121,0.6468,2517.3,2517.2,0.79433]
[1751669312323,57.224,2517.9,2517.8,0.79414]
[1751669312523,94.42775031,2517.9,2517.8,0.79414]
[1751669312822,95.82445031,2517.9,2517.8,0.79414]
[1751669313226,59.72145031,2517.9,2517.8,0.79414]
[1751669313626,95.82445031,2517.9,2517.8,0.79414]
[1751669314229,59.72145031,2517.9,2517.8,0.79414]
[1751669314427,93.327,2517.9,2517.8,0.79414]
[1751669317128,94.6157,2517.9,2517.8,0.79414]
[1751669320631,57.224,2517.9,2517.8,0.79414]
[1751669320832,1.3384,2518.0,2517.9,0.79411]
[1751669321023,37.4354,2518.0,2517.9,0.79411]
[1751669322527,38.7544,2518.0,2517.9,0.79411]
[1751669328833,37.4354,2518.0,2517.9,0.79411]
[1751669329135,1.4062,2518.5,2518.4,0.79395]
[1751669329340,2.37324754,2519.0,2517.9,5.0]
[1751669329341,2.804,2518.9,2518.8,0.79383]
[1751669329639,38.897,2518.9,2518.8,0.79383]
[1751669330032,2.804,2518.9,2518.8,0.79383]
[1751669330239,38.896,2518.9,2518.8,0.79383]
[1751669330641,2.37324754,2519.7,2518.8,5.0]
[1751669330938,38.59335244,2519.6,2519.5,0.79361]
[1751669331132,37.4982,2519.6,2519.5,0.79361]
[1751669331334,11.8901,2519.9,2519.8,0.79351]
[1751669331838,49.3297,2519.9,2519.8,0.79351]
[1751669332335,11.192,2520.8,2520.0,0.79345]
[1751669332637,36.122,2520.4,2520.0,0.79345]
[1751669333838,36.122,2520.4,2519.8,1.3481]
[1751669334033,0.7934,2520.2,2519.8,0.7935]
[1751669334334,36.122,2520.4,2519.5,0.6931]
[1751669334335,36.34539297,2520.1,2519.5,0.6931]
[1751669334641,0.17639297,2520.1,2519.5,0.6931]
[1751669334840,0.17639297,2520.1,2519.9,0.79347]
[1751669335140,0.17639297,2520.1,2519.8,0.7935]
[1751669335435,0.17639297,2520.1,2519.6,1.3824]
[1751669335630,0.17639297,2520.1,2519.6,2.17596]
[1751669335835,1.57639297,2520.1,2519.6,2.17596]
[1751669336037,1.57639297,2520.1,2519.5,1.48669]
[1751669336342,0.7935,2519.9,2519.5,1.48669]
[1751669336732,1.57639297,2520.1,2519.5,0.6931]
[1751669336932,0.79349,2519.9,2519.5,0.6931]
[1751669337239,0.17639297,2520.1,2519.5,2.67709]
[1751669337439,36.37239297,2520.1,2519.9,0.79346]
[1751669337838,36.37239297,2520.1,2519.8,0.79349]
[1751669338137,36.37239297,2520.1,2519.9,0.79347]
[1751669338342,36.37239297,2520.1,2519.8,0.7935]
[1751669338745,37.75219297,2520.1,2519.8,0.7935]
[1751669339242,37.75219297,2520.1,2519.6,1.3824]
[1751669339243,38.54562297,2520.1,2519.6,1.3824]
[1751669339442,37.75219297,2520.1,2519.8,0.79351]
[1751669339743,37.75219297,2520.1,2519.9,0.79348]
[1751669341333,37.75219297,2520.1,2520.0,0.79345]
[1751669341539,0.17639297,2520.1,2520.0,0.79345]
[1751669348351,0.17639297,2520.1,2520.0,2.75585]
[1751669348550,36.166,2520.5,2520.4,0.79332]
[1751669349153,0.6498,2520.6,2520.5,0.79329]
[1751669351350,0.79324,2520.7,2520.4,0.7933]
[1751669351654,2.7748,2520.5,2520.4,0.7933]
[1751669351856,2.7748,2520.5,2520.3,0.79334]
[1751669352151,2.7748,2520.5,2520.0,0.6679]
[1751669352353,2.7748,2520.5,2520.4,0.79332]
[1751669352750,2.7748,2520.5,2520.3,0.79333]
[1751669352956,2.7748,2520.5,2520.0,0.6679]
[1751669353152,0.79336,2520.3,2520.0,0.79342]
[1751669353353,1.2962,2520.2,2520.0,0.79342]
[1751669353750,2.08959,2520.2,2520.0,0.79342]
[1751669354257,1.2962,2520.2,2519.6,1.98392]
[1751669354452,2.08959,2520.2,2520.0,0.79344]
[1751669354651,2.08959,2520.2,2520.1,0.79342]
[1751669354652,1.2962,2520.2,2520.1,0.79342]
[1751669355058,1.2962,2520.2,2520.0,0.79343]
[1751669355754,1.2962,2520.2,2520.1,0.79342]
[1751669355955,1.2962,2520.2,2519.5,13.16596]
[1751669356256,1.2962,2520.2,2519.5,1.98396]
[1751669356452,1.2962,2520.2,2519.2,0.3110016]
[1751669356652,0.79353,2519.8,2519.6,0.79357]
[1751669356858,3.48914,2519.7,2519.5,0.79359]
[1751669357158,3.48914,2519.7,2519.6,0.79358]
[1751669357654,11.183,2520.2,2519.7,1.98383]
[1751669357952,1.3617,2520.1,2520.0,0.79345]
[1751669359658,2.6558,2520.1,2520.0,0.79345]
[1751669359858,2.6558,2520.1,2519.6,1.98395]
[1751669360057,2.6558,2520.1,2520.0,0.79345]
[1751669360261,2.6558,2520.1,2519.9,0.79346]
[1751669360464,3.44922,2520.1,2519.8,0.79349]
[1751669360756,3.44922,2520.1,2519.7,0.79353]
[1751669360958,2.6558,2520.1,2519.9,0.79348]
[1751669361265,2.6558,2520.1,2519.8,0.79349]
[1751669361559,0.79346,2520.0,2519.7,0.79354]
[1751669361753,1.2941,2519.9,2519.7,0.79354]
[1751669362258,2.08758,2519.9,2519.6,0.79356]
[1751669362466,0.79351,2519.8,2519.2,2.66042]
[1751669362756,36.205,2520.0,2519.8,0.79349]
[1751669363157,37.602,2520.0,2519.7,0.79352]
[1751669363366,38.39545,2520.0,2519.7,0.79352]
[1751669364365,37.602,2520.0,2519.8,0.79351]
[1751669364560,38.39546,2520.0,2519.8,0.79351]
[1751669364760,38.39546,2520.0,2519.7,0.79353]
[1751669365166,2.19046,2520.0,2519.8,0.79351]
[1751669365363,37.593,2520.0,2519.8,0.79351]